[Event "Titled Tuesday Blitz March 29 Early 2022"]
[White "Xu, Yi"]
[Black "Tymrakiewicz, Rafal"]
[WhiteFideId "8605564"]
[BlackFideId "1108832"]
[WhiteElo "2471"]
[BlackElo "2205"]
[Result "1-0"]
[Round "01"]
[TimeControl "180+1"]
[Date "2022.03.29"]
[WhiteClock "0:00:14"]
[BlackClock "0:00:02"]

1. e4 {[%clk 0:03:00]}  Nf6 {[%clk 0:02:58]} 2. e5 {[%clk 0:02:59]}  Nd5 {[%clk 0:02:58]} 3. d4 {[%clk 0:03:00]}  d6 {[%clk 0:02:58]} 4. Nf3 {[%clk 0:02:59]}  g6 {[%clk 0:02:58]} 5. Bc4 {[%clk 0:02:58]}  Nb6 {[%clk 0:02:58]} 6. Bb3 {[%clk 0:02:58]}  d5 {[%clk 0:02:58]} 7. h3 {[%clk 0:02:55]}  Bg7 {[%clk 0:02:57]} 8. c3 {[%clk 0:02:55]}  Nc6 {[%clk 0:02:56]} 9. Bf4 {[%clk 0:02:54]}  f6 {[%clk 0:02:43]} 10. O-O {[%clk 0:02:41]}  fxe5 {[%clk 0:02:42]} 11. Nxe5 {[%clk 0:02:35]}  Nxe5 {[%clk 0:02:42]} 12. Bxe5 {[%clk 0:02:30]}  Bxe5 {[%clk 0:02:42]} 13. dxe5 {[%clk 0:02:31]}  O-O {[%clk 0:02:42]} 14. Nd2 {[%clk 0:02:25]}  c5 {[%clk 0:02:41]} 15. Nf3 {[%clk 0:02:23]}  Bf5 {[%clk 0:02:36]} 16. Qe2 {[%clk 0:02:16]}  c4 {[%clk 0:02:09]} 17. Bc2 {[%clk 0:02:16]}  Bxc2 {[%clk 0:02:09]} 18. Qxc2 {[%clk 0:02:16]}  e6 {[%clk 0:02:10]} 19. Nd4 {[%clk 0:02:15]}  Qe7 {[%clk 0:02:09]} 20. f4 {[%clk 0:02:05]}  Nd7 {[%clk 0:02:08]} 21. Qe2 {[%clk 0:02:04]}  Nc5 {[%clk 0:02:02]} 22. Qg4 {[%clk 0:02:04]}  Kh8 {[%clk 0:01:53]} 23. h4 {[%clk 0:02:02]}  Qf7 {[%clk 0:01:47]} 24. Rf3 {[%clk 0:01:51]}  Ne4 {[%clk 0:01:41]} 25. Nxe6 {[%clk 0:01:31]}  Qd7 {[%clk 0:01:22]} 26. Qh3 {[%clk 0:01:19]}  Rae8 {[%clk 0:01:17]} 27. Nxf8 {[%clk 0:01:15]}  Qxh3 {[%clk 0:01:14]} 28. Nxg6+ {[%clk 0:01:13]}  hxg6 {[%clk 0:01:14]} 29. Rxh3 {[%clk 0:01:14]}  Nc5 {[%clk 0:01:13]} 30. Rd1 {[%clk 0:01:11]}  Nd3 {[%clk 0:01:13]} 31. Rhxd3 {[%clk 0:01:11]}  cxd3 {[%clk 0:01:12]} 32. Rxd3 {[%clk 0:01:12]}  Rd8 {[%clk 0:01:02]} 33. Rd4 {[%clk 0:01:12]}  b5 {[%clk 0:01:00]} 34. Kf2 {[%clk 0:01:09]}  Kg7 {[%clk 0:01:00]} 35. g4 {[%clk 0:01:09]}  Kf7 {[%clk 0:01:01]} 36. f5 {[%clk 0:01:08]}  gxf5 {[%clk 0:00:59]} 37. gxf5 {[%clk 0:01:09]}  Ke7 {[%clk 0:01:00]} 38. Kf3 {[%clk 0:01:08]}  a6 {[%clk 0:00:57]} 39. Kf4 {[%clk 0:01:08]}  a5 {[%clk 0:00:57]} 40. h5 {[%clk 0:01:07]}  a4 {[%clk 0:00:53]} 41. a3 {[%clk 0:01:07]}  Kf7 {[%clk 0:00:53]} 42. h6 {[%clk 0:01:07]}  Ke7 {[%clk 0:00:52]} 43. h7 {[%clk 0:01:07]}  Rh8 {[%clk 0:00:51]} 44. Rxd5 {[%clk 0:01:07]}  Rxh7 {[%clk 0:00:52]} 45. Rxb5 {[%clk 0:01:07]}  Kd8 {[%clk 0:00:51]} 46. Rb4 {[%clk 0:01:05]}  Kc7 {[%clk 0:00:50]} 47. Rxa4 {[%clk 0:01:05]}  Rh4+ {[%clk 0:00:50]} 48. Kg5 {[%clk 0:01:05]}  Rxa4 {[%clk 0:00:51]} 49. f6 {[%clk 0:01:05]}  Kd7 {[%clk 0:00:46]} 50. Kf5 {[%clk 0:00:52]}  Ra5 {[%clk 0:00:34]} 51. c4 {[%clk 0:00:50]}  Rc5 {[%clk 0:00:30]} 52. b3 {[%clk 0:00:50]}  Ra5 {[%clk 0:00:27]} 53. a4 {[%clk 0:00:49]}  Rc5 {[%clk 0:00:26]} 54. a5 {[%clk 0:00:42]}  Rxa5 {[%clk 0:00:25]} 55. b4 {[%clk 0:00:42]}  Ra1 {[%clk 0:00:21]} 56. e6+ {[%clk 0:00:39]}  Ke8 {[%clk 0:00:13]} 57. Ke5 {[%clk 0:00:35]}  Re1+ {[%clk 0:00:10]} 58. Kd6 {[%clk 0:00:35]}  Rd1+ {[%clk 0:00:10]} 59. Kc5 {[%clk 0:00:33]}  Re1 {[%clk 0:00:08]} 60. Kd5 {[%clk 0:00:29]}  Rd1+ {[%clk 0:00:08]} 61. Kc6 {[%clk 0:00:25]}  Re1 {[%clk 0:00:08]} 62. f7+ {[%clk 0:00:24]}  Ke7 {[%clk 0:00:08]} 63. b5 {[%clk 0:00:22]}  Rxe6+ {[%clk 0:00:08]} 64. Kc7 {[%clk 0:00:19]}  Kxf7 {[%clk 0:00:05]} 65. b6 {[%clk 0:00:18]}  Re7+ {[%clk 0:00:06]} 66. Kc6 {[%clk 0:00:16]}  Re6+ {[%clk 0:00:04]} 67. Kb5 {[%clk 0:00:16]}  Re5+ {[%clk 0:00:02]} 68. Ka6 {[%clk 0:00:14]} 1-0


[Site "https://www.chess.com"]

[Event "Titled Tuesday Blitz March 29 Early 2022"]
[White "Zaksaite, Salomeja"]
[Black "Obolentseva, Alexandra"]
[WhiteFideId "12801496"]
[BlackFideId "24153648"]
[WhiteElo "1953"]
[BlackElo "2113"]
[Result "1-0"]
[Round "01"]
[TimeControl "180+1"]
[Date "2022.03.30"]
[WhiteClock "0:00:14"]
[BlackClock "0:00:46"]

1. e4 {[%clk 0:02:59]}  c5 {[%clk 0:02:57]} 2. Nf3 {[%clk 0:02:58]}  d6 {[%clk 0:02:54]} 3. d4 {[%clk 0:02:57]}  cxd4 {[%clk 0:02:55]} 4. Nxd4 {[%clk 0:02:56]}  Nf6 {[%clk 0:02:54]} 5. Nc3 {[%clk 0:02:56]}  a6 {[%clk 0:02:52]} 6. h3 {[%clk 0:02:55]}  e5 {[%clk 0:02:51]} 7. Nde2 {[%clk 0:02:55]}  h5 {[%clk 0:02:51]} 8. g3 {[%clk 0:02:52]}  Be6 {[%clk 0:02:44]} 9. Bg2 {[%clk 0:02:53]}  Be7 {[%clk 0:02:42]} 10. Be3 {[%clk 0:02:50]}  Nc6 {[%clk 0:02:41]} 11. Qd2 {[%clk 0:02:48]}  Rc8 {[%clk 0:02:37]} 12. O-O {[%clk 0:02:47]}  O-O {[%clk 0:02:35]} 13. Nd5 {[%clk 0:02:40]}  Nd7 {[%clk 0:02:18]} 14. Nxe7+ {[%clk 0:02:22]}  Qxe7 {[%clk 0:02:19]} 15. Rfd1 {[%clk 0:02:18]}  Bc4 {[%clk 0:01:59]} 16. Qxd6 {[%clk 0:02:06]}  Qxd6 {[%clk 0:01:48]} 17. Rxd6 {[%clk 0:02:05]}  Nf6 {[%clk 0:01:48]} 18. Nc3 {[%clk 0:01:33]}  Nb4 {[%clk 0:01:44]} 19. Rc1 {[%clk 0:01:27]}  Nxa2 {[%clk 0:01:42]} 20. Nxa2 {[%clk 0:01:26]}  Bxa2 {[%clk 0:01:43]} 21. b3 {[%clk 0:01:15]}  a5 {[%clk 0:01:30]} 22. Rb6 {[%clk 0:01:09]}  a4 {[%clk 0:01:23]} 23. bxa4 {[%clk 0:01:06]}  Rc4 {[%clk 0:01:19]} 24. a5 {[%clk 0:00:51]}  Nxe4 {[%clk 0:01:17]} 25. Ra1 {[%clk 0:00:27]}  Nc3 {[%clk 0:01:11]} 26. Rxb7 {[%clk 0:00:24]}  Ra4 {[%clk 0:01:01]} 27. Bb6 {[%clk 0:00:23]}  Rc8 {[%clk 0:00:57]} 28. Bf1 {[%clk 0:00:22]}  Nd5 {[%clk 0:00:49]} 29. a6 {[%clk 0:00:17]}  Nxb6 {[%clk 0:00:43]} 30. Rxb6 {[%clk 0:00:17]}  Rxc2 {[%clk 0:00:43]} 31. Rb8+ {[%clk 0:00:15]}  Kh7 {[%clk 0:00:42]} 32. Bd3+ {[%clk 0:00:15]}  g6 {[%clk 0:00:42]} 33. Bxc2 {[%clk 0:00:15]}  Rxa6 {[%clk 0:00:43]} 34. Bb3 {[%clk 0:00:11]}  Bxb3 {[%clk 0:00:42]} 35. Rxa6 {[%clk 0:00:11]}  Be6 {[%clk 0:00:43]} 36. Rxe6 {[%clk 0:00:10]}  fxe6 {[%clk 0:00:43]} 37. Rb5 {[%clk 0:00:11]}  Kg7 {[%clk 0:00:42]} 38. Rxe5 {[%clk 0:00:12]}  Kf6 {[%clk 0:00:43]} 39. Re3 {[%clk 0:00:13]}  e5 {[%clk 0:00:43]} 40. Kg2 {[%clk 0:00:13]}  Kf5 {[%clk 0:00:44]} 41. Kf3 {[%clk 0:00:14]}  g5 {[%clk 0:00:44]} 42. g4+ {[%clk 0:00:13]}  hxg4+ {[%clk 0:00:45]} 43. hxg4+ {[%clk 0:00:14]}  Kf6 {[%clk 0:00:46]} 1-0


[Site "https://www.chess.com"]

[Event "Titled Tuesday Blitz March 29 Early 2022"]
[White "Zemlyanskii, Ivan"]
[Black "parintele_chess"]
[WhiteFideId "24249971"]
[WhiteElo "1759"]
[BlackElo "2236"]
[Result "1-0"]
[Round "01"]
[TimeControl "180+1"]
[Date "2022.03.30"]
[WhiteClock "0:01:07"]
[BlackClock "0:00:58"]

1. d4 {[%clk 0:02:53]}  d5 {[%clk 0:02:59]} 2. c4 {[%clk 0:02:53]}  e6 {[%clk 0:02:59]} 3. Nf3 {[%clk 0:02:50]}  Nf6 {[%clk 0:02:58]} 4. e3 {[%clk 0:02:50]}  dxc4 {[%clk 0:02:57]} 5. Bxc4 {[%clk 0:02:49]}  a6 {[%clk 0:02:57]} 6. a4 {[%clk 0:02:49]}  Be7 {[%clk 0:02:56]} 7. O-O {[%clk 0:02:47]}  O-O {[%clk 0:02:57]} 8. Qe2 {[%clk 0:02:47]}  c5 {[%clk 0:02:57]} 9. Rd1 {[%clk 0:02:47]}  Nc6 {[%clk 0:02:56]} 10. Nc3 {[%clk 0:02:45]}  cxd4 {[%clk 0:02:52]} 11. exd4 {[%clk 0:02:43]}  Nd5 {[%clk 0:02:50]} 12. Bd3 {[%clk 0:02:30]}  g6 {[%clk 0:02:34]} 13. Bh6 {[%clk 0:02:29]}  Re8 {[%clk 0:02:35]} 14. Rac1 {[%clk 0:02:25]}  Bf8 {[%clk 0:02:27]} 15. Bg5 {[%clk 0:02:24]}  Be7 {[%clk 0:02:24]} 16. Bh6 {[%clk 0:02:21]}  Bf8 {[%clk 0:02:24]} 17. Bxf8 {[%clk 0:02:21]}  Rxf8 {[%clk 0:02:20]} 18. Ne4 {[%clk 0:02:16]}  Nf4 {[%clk 0:02:18]} 19. Qe3 {[%clk 0:02:16]}  Nxd3 {[%clk 0:02:17]} 20. Rxd3 {[%clk 0:02:13]}  Qb6 {[%clk 0:01:59]} 21. Qh6 {[%clk 0:02:04]}  f6 {[%clk 0:01:49]} 22. h4 {[%clk 0:01:54]}  Bd7 {[%clk 0:01:26]} 23. Nfg5 {[%clk 0:01:27]}  fxg5 {[%clk 0:01:20]} 24. Nxg5 {[%clk 0:01:28]}  Rf4 {[%clk 0:00:59]} 25. Qxh7+ {[%clk 0:01:24]}  Kf8 {[%clk 0:00:59]} 26. Qxd7 {[%clk 0:01:08]}  Rd8 {[%clk 0:00:58]} 27. Nxe6+ {[%clk 0:01:07]} 1-0


[Site "https://www.chess.com"]

[Event "Titled Tuesday Blitz March 29 Early 2022"]
[White "Zhigalko, Sergei"]
[Black "Mortazavi, Ali"]
[WhiteFideId "13502956"]
[BlackFideId "401323"]
[WhiteElo "2662"]
[BlackElo "2339"]
[Result "0-1"]
[Round "01"]
[TimeControl "180+1"]
[Date "2022.03.29"]
[WhiteClock "0:00:04"]
[BlackClock "0:00:13"]

1. e4 {[%clk 0:03:00]}  c6 {[%clk 0:02:59]} 2. d4 {[%clk 0:03:00]}  d5 {[%clk 0:02:59]} 3. e5 {[%clk 0:03:01]}  Bf5 {[%clk 0:03:00]} 4. Nf3 {[%clk 0:03:02]}  e6 {[%clk 0:03:00]} 5. Be2 {[%clk 0:03:03]}  Ne7 {[%clk 0:03:00]} 6. O-O {[%clk 0:03:03]}  Ng6 {[%clk 0:03:01]} 7. Ne1 {[%clk 0:03:03]}  h5 {[%clk 0:03:00]} 8. Bd3 {[%clk 0:03:03]}  Nh4 {[%clk 0:02:52]} 9. Nd2 {[%clk 0:03:03]}  Bxd3 {[%clk 0:02:46]} 10. Nxd3 {[%clk 0:03:03]}  Be7 {[%clk 0:02:42]} 11. Nf3 {[%clk 0:02:56]}  Nf5 {[%clk 0:02:41]} 12. g3 {[%clk 0:02:55]}  g5 {[%clk 0:02:34]} 13. c3 {[%clk 0:02:52]}  Nd7 {[%clk 0:02:34]} 14. h3 {[%clk 0:02:38]}  Rc8 {[%clk 0:02:12]} 15. g4 {[%clk 0:02:31]}  hxg4 {[%clk 0:02:08]} 16. hxg4 {[%clk 0:02:32]}  Nh4 {[%clk 0:01:56]} 17. Be3 {[%clk 0:02:31]}  Qb6 {[%clk 0:01:41]} 18. Nxh4 {[%clk 0:02:19]}  Rxh4 {[%clk 0:01:41]} 19. Kg2 {[%clk 0:02:19]}  Nf8 {[%clk 0:01:34]} 20. f3 {[%clk 0:02:15]}  Ng6 {[%clk 0:01:34]} 21. Qd2 {[%clk 0:02:15]}  Kd7 {[%clk 0:01:21]} 22. Bxg5 {[%clk 0:02:06]}  Bxg5 {[%clk 0:01:21]} 23. Qxg5 {[%clk 0:02:07]}  Rch8 {[%clk 0:01:21]} 24. Rh1 {[%clk 0:02:06]}  Qb5 {[%clk 0:01:16]} 25. Nc5+ {[%clk 0:01:57]}  Ke8 {[%clk 0:01:12]} 26. Qd2 {[%clk 0:01:55]}  Nf4+ {[%clk 0:01:01]} 27. Kg3 {[%clk 0:01:43]}  Ne2+ {[%clk 0:00:58]} 28. Kg2 {[%clk 0:01:43]}  Nf4+ {[%clk 0:00:56]} 29. Kg3 {[%clk 0:01:43]}  Rxh1 {[%clk 0:00:47]} 30. Rxh1 {[%clk 0:01:44]}  Rxh1 {[%clk 0:00:47]} 31. Kxf4 {[%clk 0:01:45]}  Qf1 {[%clk 0:00:46]} 32. Nxb7 {[%clk 0:01:40]}  Rh3 {[%clk 0:00:38]} 33. Qe3 {[%clk 0:01:25]}  Qg2 {[%clk 0:00:37]} 34. Nd6+ {[%clk 0:01:14]}  Ke7 {[%clk 0:00:38]} 35. Kg5 {[%clk 0:00:11]}  Rxf3 {[%clk 0:00:26]} 36. Qe1 {[%clk 0:00:08]}  Rg3 {[%clk 0:00:17]} 37. Qd1 {[%clk 0:00:05]}  Qf2 {[%clk 0:00:13]} 38. Nc8+ {[%clk 0:00:05]}  Kf8 {[%clk 0:00:13]} 39. Nd6 {[%clk 0:00:04]}  Qe3+ {[%clk 0:00:13]} 0-1


[Site "https://www.chess.com"]

[Event "Titled Tuesday Blitz March 29 Early 2022"]
[White "Beerdsen, Thomas"]
[Black "Estrada Nieto, Julian"]
[WhiteFideId "1030108"]
[BlackFideId "5101018"]
[WhiteElo "2585"]
[BlackElo "2246"]
[Result "1-0"]
[Round "02"]
[TimeControl "180+1"]
[Date "2022.03.30"]
[WhiteClock "0:01:58"]
[BlackClock "0:00:06"]

1. e4 {[%clk 0:03:00]}  e5 {[%clk 0:02:59]} 2. Qh5 {[%clk 0:03:00]}  Nc6 {[%clk 0:02:56]} 3. Bc4 {[%clk 0:03:01]}  g6 {[%clk 0:02:50]} 4. Qf3 {[%clk 0:03:01]}  Nf6 {[%clk 0:02:50]} 5. Ne2 {[%clk 0:03:01]}  Bg7 {[%clk 0:02:49]} 6. d3 {[%clk 0:03:01]}  d6 {[%clk 0:02:47]} 7. Bg5 {[%clk 0:03:01]}  h6 {[%clk 0:02:46]} 8. Be3 {[%clk 0:03:00]}  O-O {[%clk 0:02:43]} 9. h3 {[%clk 0:03:01]}  Na5 {[%clk 0:02:39]} 10. Bb3 {[%clk 0:02:59]}  Nxb3 {[%clk 0:02:39]} 11. axb3 {[%clk 0:02:59]}  d5 {[%clk 0:02:37]} 12. g4 {[%clk 0:03:00]}  b6 {[%clk 0:02:09]} 13. g5 {[%clk 0:02:57]}  hxg5 {[%clk 0:02:07]} 14. Bxg5 {[%clk 0:02:58]}  Bb7 {[%clk 0:02:05]} 15. Nbc3 {[%clk 0:02:48]}  d4 {[%clk 0:01:53]} 16. Nb5 {[%clk 0:02:47]}  c6 {[%clk 0:01:45]} 17. Nc7 {[%clk 0:02:37]}  Rc8 {[%clk 0:01:32]} 18. h4 {[%clk 0:02:37]}  Rxc7 {[%clk 0:01:28]} 19. h5 {[%clk 0:02:38]}  Qd6 {[%clk 0:01:24]} 20. h6 {[%clk 0:02:38]}  Bh8 {[%clk 0:01:22]} 21. h7+ {[%clk 0:02:38]}  Nxh7 {[%clk 0:01:16]} 22. Qh3 {[%clk 0:02:39]}  f6 {[%clk 0:01:01]} 23. Bh6 {[%clk 0:02:39]}  Bg7 {[%clk 0:00:52]} 24. Bd2 {[%clk 0:02:30]}  Ng5 {[%clk 0:00:47]} 25. Bxg5 {[%clk 0:02:25]}  fxg5 {[%clk 0:00:47]} 26. Rxa7 {[%clk 0:02:24]}  Kf7 {[%clk 0:00:43]} 27. Rg1 {[%clk 0:02:17]}  Qf6 {[%clk 0:00:33]} 28. Rg3 {[%clk 0:02:13]}  Kg8 {[%clk 0:00:30]} 29. Qg2 {[%clk 0:02:12]}  Rcf7 {[%clk 0:00:25]} 30. Rxg5 {[%clk 0:02:10]}  Kh7 {[%clk 0:00:20]} 31. Rg3 {[%clk 0:02:08]}  Bh6 {[%clk 0:00:20]} 32. f4 {[%clk 0:02:05]}  exf4 {[%clk 0:00:19]} 33. Rf3 {[%clk 0:02:05]}  g5 {[%clk 0:00:19]} 34. Ng1 {[%clk 0:02:02]}  c5 {[%clk 0:00:16]} 35. Rh3 {[%clk 0:02:00]}  Qg6 {[%clk 0:00:13]} 36. Nf3 {[%clk 0:01:57]}  g4 {[%clk 0:00:12]} 37. Ne5 {[%clk 0:01:57]}  f3 {[%clk 0:00:10]} 38. Qxg4 {[%clk 0:01:50]}  Qxg4 {[%clk 0:00:09]} 39. Nxg4 {[%clk 0:01:51]}  f2+ {[%clk 0:00:08]} 40. Kf1 {[%clk 0:01:52]}  Rg8 {[%clk 0:00:06]} 41. Rxh6+ {[%clk 0:01:49]}  Kg7 {[%clk 0:00:06]} 42. Rxb6 {[%clk 0:01:48]}  Bc8 {[%clk 0:00:06]} 43. Rxf7+ {[%clk 0:01:49]}  Kxf7 {[%clk 0:00:07]} 44. Nh6+ {[%clk 0:01:50]}  Kg7 {[%clk 0:00:07]} 45. Nxg8 {[%clk 0:01:50]}  Bh3+ {[%clk 0:00:06]} 46. Kxf2 {[%clk 0:01:51]}  Kxg8 {[%clk 0:00:06]} 47. Rc6 {[%clk 0:01:51]}  Kf7 {[%clk 0:00:06]} 48. Rxc5 {[%clk 0:01:52]}  Kf6 {[%clk 0:00:07]} 49. Rd5 {[%clk 0:01:52]}  Be6 {[%clk 0:00:06]} 50. Rxd4 {[%clk 0:01:53]}  Ke5 {[%clk 0:00:07]} 51. Ke3 {[%clk 0:01:54]}  Kf6 {[%clk 0:00:05]} 52. c3 {[%clk 0:01:55]}  Ke7 {[%clk 0:00:06]} 53. b4 {[%clk 0:01:56]}  Bd7 {[%clk 0:00:06]} 54. Rd5 {[%clk 0:01:57]}  Bc6 {[%clk 0:00:06]} 55. Rc5 {[%clk 0:01:57]}  Kd6 {[%clk 0:00:06]} 56. Kd4 {[%clk 0:01:58]} 1-0


[Site "https://www.chess.com"]

[Event "Titled Tuesday Blitz March 29 Early 2022"]
[White "Bintang, Rasyid A. Hidayat"]
[Black "Aditya Mittal"]
[WhiteFideId "7105355"]
[BlackFideId "35042025"]
[WhiteElo "2370"]
[BlackElo "2303"]
[Result "0-1"]
[Round "02"]
[TimeControl "180+1"]
[Date "2022.03.30"]
[WhiteClock "0:00:01"]
[BlackClock "0:00:18"]

1. d4 {[%clk 0:03:00]}  Nf6 {[%clk 0:02:59]} 2. Bf4 {[%clk 0:02:59]}  d5 {[%clk 0:02:59]} 3. e3 {[%clk 0:02:59]}  c5 {[%clk 0:02:59]} 4. Nd2 {[%clk 0:02:58]}  Nc6 {[%clk 0:02:59]} 5. Ngf3 {[%clk 0:02:58]}  Bf5 {[%clk 0:02:58]} 6. dxc5 {[%clk 0:02:55]}  e6 {[%clk 0:02:57]} 7. b4 {[%clk 0:02:47]}  Nxb4 {[%clk 0:02:53]} 8. Bb5+ {[%clk 0:02:42]}  Nc6 {[%clk 0:02:45]} 9. Nd4 {[%clk 0:02:41]}  Rc8 {[%clk 0:02:38]} 10. Nxc6 {[%clk 0:02:40]}  bxc6 {[%clk 0:02:36]} 11. Ba6 {[%clk 0:02:40]}  Bxc5 {[%clk 0:02:31]} 12. Bxc8 {[%clk 0:02:40]}  Qxc8 {[%clk 0:02:32]} 13. O-O {[%clk 0:02:38]}  O-O {[%clk 0:02:32]} 14. c4 {[%clk 0:02:28]}  Qa6 {[%clk 0:02:23]} 15. cxd5 {[%clk 0:02:26]}  cxd5 {[%clk 0:02:12]} 16. Nb3 {[%clk 0:02:24]}  Bb4 {[%clk 0:02:09]} 17. a3 {[%clk 0:02:21]}  Bc3 {[%clk 0:01:57]} 18. Ra2 {[%clk 0:02:08]}  Nd7 {[%clk 0:01:31]} 19. Qc1 {[%clk 0:01:16]}  Rc8 {[%clk 0:01:24]} 20. g4 {[%clk 0:00:57]}  Bd3 {[%clk 0:01:14]} 21. Rd1 {[%clk 0:00:54]}  e5 {[%clk 0:01:12]} 22. Bg3 {[%clk 0:00:52]}  e4 {[%clk 0:01:08]} 23. Rc2 {[%clk 0:00:37]}  Bxc2 {[%clk 0:01:04]} 24. Qxc2 {[%clk 0:00:38]}  Qc4 {[%clk 0:00:45]} 25. Nd2 {[%clk 0:00:32]}  Qe2 {[%clk 0:00:31]} 26. Rc1 {[%clk 0:00:13]}  Nb6 {[%clk 0:00:31]} 27. Nb3 {[%clk 0:00:11]}  Qa6 {[%clk 0:00:28]} 28. Qa2 {[%clk 0:00:08]}  Bf6 {[%clk 0:00:22]} 29. Rxc8+ {[%clk 0:00:06]}  Qxc8 {[%clk 0:00:23]} 30. Nd2 {[%clk 0:00:06]}  Qxg4 {[%clk 0:00:20]} 31. a4 {[%clk 0:00:05]}  h5 {[%clk 0:00:20]} 32. a5 {[%clk 0:00:05]}  Nc4 {[%clk 0:00:17]} 33. Nxc4 {[%clk 0:00:05]}  dxc4 {[%clk 0:00:18]} 34. Qxc4 {[%clk 0:00:02]}  h4 {[%clk 0:00:18]} 35. Qc8+ {[%clk 0:00:01]}  Qxc8 {[%clk 0:00:18]} 0-1


[Site "https://www.chess.com"]

[Event "Titled Tuesday Blitz March 29 Early 2022"]
[White "Bychkov, Vladimir"]
[Black "Sanchez Alvares, Kelvin Antonio"]
[WhiteFideId "24151513"]
[BlackFideId "3906680"]
[WhiteElo "2253"]
[BlackElo "2193"]
[Result "1-0"]
[Round "02"]
[TimeControl "180+1"]
[Date "2022.03.30"]
[WhiteClock "0:00:08"]
[BlackClock "0:00:03"]

1. Nf3 {[%clk 0:02:35]}  d5 {[%clk 0:02:58]} 2. d4 {[%clk 0:02:35]}  Nf6 {[%clk 0:02:57]} 3. c4 {[%clk 0:02:36]}  c6 {[%clk 0:02:56]} 4. e3 {[%clk 0:02:36]}  e6 {[%clk 0:02:52]} 5. Qc2 {[%clk 0:02:32]}  Nbd7 {[%clk 0:02:52]} 6. Nbd2 {[%clk 0:02:32]}  Bd6 {[%clk 0:02:51]} 7. b3 {[%clk 0:02:32]}  Qe7 {[%clk 0:02:48]} 8. Bb2 {[%clk 0:02:32]}  e5 {[%clk 0:02:48]} 9. cxd5 {[%clk 0:02:32]}  Nxd5 {[%clk 0:02:45]} 10. a3 {[%clk 0:02:24]}  O-O {[%clk 0:02:44]} 11. Bd3 {[%clk 0:02:23]}  N5f6 {[%clk 0:02:31]} 12. Nh4 {[%clk 0:02:15]}  Nb6 {[%clk 0:02:20]} 13. Nf5 {[%clk 0:01:46]}  Bxf5 {[%clk 0:02:19]} 14. Bxf5 {[%clk 0:01:47]}  exd4 {[%clk 0:02:16]} 15. Bxd4 {[%clk 0:01:41]}  Be5 {[%clk 0:02:14]} 16. Nf3 {[%clk 0:01:38]}  Bxd4 {[%clk 0:02:11]} 17. Nxd4 {[%clk 0:01:39]}  Rad8 {[%clk 0:01:55]} 18. O-O {[%clk 0:01:37]}  Nbd5 {[%clk 0:01:53]} 19. Rfd1 {[%clk 0:01:26]}  g6 {[%clk 0:01:48]} 20. Bh3 {[%clk 0:01:25]}  Rfe8 {[%clk 0:01:35]} 21. b4 {[%clk 0:01:14]}  Qe5 {[%clk 0:01:07]} 22. Nf3 {[%clk 0:01:08]}  Qe4 {[%clk 0:00:59]} 23. Qxe4 {[%clk 0:01:03]}  Nxe4 {[%clk 0:01:00]} 24. Nd4 {[%clk 0:00:55]}  Ndc3 {[%clk 0:00:52]} 25. Re1 {[%clk 0:00:54]}  a6 {[%clk 0:00:37]} 26. g3 {[%clk 0:00:52]}  Nb5 {[%clk 0:00:31]} 27. Nxb5 {[%clk 0:00:45]}  axb5 {[%clk 0:00:30]} 28. a4 {[%clk 0:00:45]}  bxa4 {[%clk 0:00:30]} 29. Rxa4 {[%clk 0:00:46]}  Ra8 {[%clk 0:00:28]} 30. Rea1 {[%clk 0:00:44]}  Rxa4 {[%clk 0:00:27]} 31. Rxa4 {[%clk 0:00:45]}  Rd8 {[%clk 0:00:21]} 32. b5 {[%clk 0:00:18]}  Rd1+ {[%clk 0:00:09]} 33. Kg2 {[%clk 0:00:18]}  Nc5 {[%clk 0:00:08]} 34. Ra8+ {[%clk 0:00:18]}  Kg7 {[%clk 0:00:08]} 35. bxc6 {[%clk 0:00:18]}  bxc6 {[%clk 0:00:08]} 36. Rc8 {[%clk 0:00:19]}  Rd6 {[%clk 0:00:08]} 37. Bg4 {[%clk 0:00:17]}  f5 {[%clk 0:00:07]} 38. Bf3 {[%clk 0:00:18]}  Nd3 {[%clk 0:00:05]} 39. Bxc6 {[%clk 0:00:17]}  Ne1+ {[%clk 0:00:04]} 40. Kf1 {[%clk 0:00:16]}  Nd3 {[%clk 0:00:04]} 41. h4 {[%clk 0:00:15]}  Ne5 {[%clk 0:00:05]} 42. Ba8 {[%clk 0:00:13]}  h5 {[%clk 0:00:04]} 43. Kg2 {[%clk 0:00:13]}  Rd2 {[%clk 0:00:04]} 44. Rc7+ {[%clk 0:00:09]}  Kf6 {[%clk 0:00:03]} 45. Kf1 {[%clk 0:00:03]}  Ng4 {[%clk 0:00:03]} 46. f4 {[%clk 0:00:03]}  Nxe3+ {[%clk 0:00:03]} 47. Ke1 {[%clk 0:00:04]}  Rc2 {[%clk 0:00:02]} 48. Rxc2 {[%clk 0:00:04]}  Nxc2+ {[%clk 0:00:02]} 49. Kf2 {[%clk 0:00:04]}  Nd4 {[%clk 0:00:02]} 50. Bg2 {[%clk 0:00:03]}  Ne6 {[%clk 0:00:02]} 51. Ke3 {[%clk 0:00:04]}  Ke7 {[%clk 0:00:02]} 52. Bd5 {[%clk 0:00:04]}  Nc7 {[%clk 0:00:01]} 53. Bc4 {[%clk 0:00:04]}  Kf6 {[%clk 0:00:02]} 54. Kd4 {[%clk 0:00:05]}  Ne8 {[%clk 0:00:02]} 55. Kc5 {[%clk 0:00:05]}  Nc7 {[%clk 0:00:02]} 56. Kc6 {[%clk 0:00:06]}  Ne8 {[%clk 0:00:02]} 57. Kd7 {[%clk 0:00:06]}  Ng7 {[%clk 0:00:02]} 58. Kd6 {[%clk 0:00:06]}  Ne8+ {[%clk 0:00:02]} 59. Kd7 {[%clk 0:00:07]}  Ng7 {[%clk 0:00:03]} 60. Bb3 {[%clk 0:00:07]}  g5 {[%clk 0:00:02]} 61. hxg5+ {[%clk 0:00:07]}  Kg6 {[%clk 0:00:03]} 62. Ke7 {[%clk 0:00:07]}  h4 {[%clk 0:00:03]} 63. Bf7+ {[%clk 0:00:08]}  Kh7 {[%clk 0:00:03]} 64. gxh4 {[%clk 0:00:08]} 1-0


[Site "https://www.chess.com"]